lending/lending_fUSD_20250819
["ID","MTS","AMOUNT","RATE_DAILY","PERIOD"]
[380267982,1755630639396,-757.23,0.00023273,30]
[380267990,1755630639456,-400.0,0.00023273,30]
[380267997,1755630639516,-834.74,0.00023273,30]
[380267998,1755630639576,-400.0,0.00023273,30]
[380268010,1755630639729,-528.08,0.00023273,30]
[380268020,1755630639792,-1466.98,0.00023273,30]
[380268028,1755630639856,-1667.74,0.00023273,30]
[380268035,1755630639918,-851.95,0.00023273,30]
[380268043,1755630639979,-400.0,0.00023273,30]
[380268051,1755630640040,-3654.91,0.00023273,30]
[380268059,1755630640103,-400.0,0.00023273,30]
[380268067,1755630640178,-585.37,0.00023273,30]
[380268076,1755630640253,-1678.23,0.00023273,30]
[380268084,1755630640317,-500.95,0.00023273,30]
[380268095,1755630640379,-1296.84,0.00023273,30]
[380268105,1755630640440,-400.0,0.00023273,30]
[380268112,1755630640500,-990.17,0.00023273,30]
[380268120,1755630640562,-1498.02,0.00023273,30]
[380268127,1755630640620,-414.92,0.00023273,30]
[380268135,1755630640683,-490.9,0.00023273,30]
[380268141,1755630640744,-1422.74,0.00023273,30]
[380268149,1755630640803,-837.81,0.00023273,30]
[380268156,1755630640861,-1994.78,0.00023273,30]
[380268165,1755630640932,-684.54,0.00023273,30]
[380268172,1755630640994,-400.0,0.00023273,30]
[380268180,1755630641057,-916.66,0.00023273,30]
[380268188,1755630641120,-400.0,0.00023273,30]
[380268195,1755630641184,-5424.17,0.00023273,30]
[380268203,1755630641249,-1483.77,0.00023273,30]
[380268211,1755630641313,-2023.25,0.00023273,30]
[380268218,1755630641373,-400.0,0.00023273,30]
[380268225,1755630641432,-827.87,0.00023273,30]
[380268233,1755630641490,-400.0,0.00023273,30]
[380268240,1755630641546,-1863.32,0.00023273,30]
[380268247,1755630641602,-1962.6,0.00023273,30]
[380268254,1755630641660,-539.12,0.00023273,30]
[380268262,1755630641723,-1489.75,0.00023273,30]
[380268269,1755630641782,-1279.96,0.00023273,30]
[380268277,1755630641841,-804.37,0.00023273,30]
[380268284,1755630641900,-879.44,0.00023273,30]
[380268291,1755630641961,-400.0,0.00023273,30]
[380268299,1755630642024,-400.0,0.00023273,30]
[380268307,1755630642086,-736.46,0.00023273,30]
[380268314,1755630642150,-400.0,0.00023273,30]
[380268322,1755630642213,-540.41,0.00023273,30]
[380268330,1755630642279,-3004.1,0.00023273,30]
[380268337,1755630642345,-903.83,0.00023273,30]
[380268338,1755630642409,-400.0,0.00023273,30]
[380268342,1755630642470,-400.0,0.00023273,30]
[380268349,1755630642529,-452.13,0.00023273,30]
[380268357,1755630642587,-768.98,0.00023273,30]
[380268364,1755630642645,-400.0,0.00023273,30]
[380268371,1755630642704,-1813.68,0.00023273,30]
[380268381,1755630642762,-400.0,0.00023273,30]
[380268390,1755630642819,-400.0,0.00023273,30]
[380268398,1755630642875,-400.0,0.00023273,30]
[380268407,1755630642943,-400.0,0.00023273,30]
[380268417,1755630643014,-2223.82,0.00023273,30]
[380268425,1755630643080,-400.0,0.00023273,30]
[380268433,1755630643144,-400.0,0.00023273,30]
[380268441,1755630643209,-2140.5,0.00023273,30]
[380268449,1755630643273,-2978.0,0.00023273,30]
[380268457,1755630643338,-762.55,0.00023273,30]
[380268465,1755630643404,-400.0,0.00023273,30]
[380268473,1755630643464,-1352.34,0.00023273,30]
[380268480,1755630643524,-2258.26,0.00023273,30]
[380268488,1755630643584,-447.68,0.00023273,30]
[380268495,1755630643644,-400.0,0.00023273,30]
[380268502,1755630643704,-400.0,0.00023273,30]
[380268510,1755630643765,-400.0,0.00023273,30]
[380268517,1755630643823,-666.94,0.00023273,30]
[380268525,1755630643882,-400.0,0.00023273,30]
[380268532,1755630643942,-400.0,0.00023273,30]
[380268540,1755630644005,-400.0,0.00023273,30]
[380268547,1755630644067,-699.19,0.00023273,30]
[380268555,1755630644130,-786.12,0.00023273,30]
[380268563,1755630644195,-1078.83,0.00023273,30]
[380268572,1755630644265,-1117.26,0.00023273,30]
[380268580,1755630644328,-400.0,0.00023273,30]
[380268588,1755630644390,-400.0,0.00023273,30]
[380268595,1755630644451,-685.74,0.00023273,30]
[380268603,1755630644512,-1514.98,0.00023273,30]
[380268610,1755630644572,-686.36,0.00023273,30]
[380268618,1755630644634,-400.0,0.00023273,30]
[380268625,1755630644695,-783.3,0.00023273,30]
[380268633,1755630644756,-400.0,0.00023273,30]
[380268639,1755630644819,-400.0,0.00023273,30]
[380268647,1755630644890,-400.0,0.00023273,30]
[380268653,1755630644956,-927.22,0.00023273,30]
[380268654,1755630645017,-3326.57,0.00023273,30]
[380268659,1755630645079,-502.0123081,0.00023273,30]
[380268667,1755630645142,-858.73,0.00023273,30]
[380268674,1755630645205,-463.57,0.00023273,30]
[380268682,1755630645267,-638.06,0.00023273,30]
[380268689,1755630645329,-1217.67,0.00023273,30]
[380268697,1755630645393,-1055.26,0.00023273,30]
[380268705,1755630645462,-617.22,0.00023273,30]
[380268713,1755630645526,-654.88,0.00023273,30]
[380268721,1755630645587,-927.42,0.00023273,30]
[380268729,1755630645648,-400.0,0.00023273,30]
[380268736,1755630645711,-877.36,0.00023273,30]
[380268745,1755630645773,-1451.41,0.00023273,30]
[380268755,1755630645835,-400.0,0.00023273,30]
[380268764,1755630645897,-774.15,0.00023273,30]
[380268772,1755630645959,-400.0,0.00023273,30]
[380268780,1755630646024,-400.0,0.00023273,30]
[380268788,1755630646090,-755.17,0.00023273,30]
[380268796,1755630646154,-1269.4,0.00023273,30]
[380268802,1755630646217,-850.21,0.00023273,30]
[380268808,1755630646282,-400.0,0.00023273,30]
[380268814,1755630646351,-2050.78,0.00023273,30]
[380268827,1755630646415,-400.0,0.00023273,30]
[380268835,1755630646481,-400.0,0.00023273,30]
[380268841,1755630646541,-1574.07,0.00023273,30]
[380268847,1755630646601,-3252.62,0.00023273,30]
[380268853,1755630646662,-400.0,0.00023273,30]
[380268860,1755630646729,-400.0,0.00023273,30]
[380268867,1755630646790,-893.8,0.00023273,30]
[380268874,1755630646850,-1796.62,0.00023273,30]
[380268880,1755630646911,-2151.13,0.00023273,30]
[380268887,1755630646974,-400.0,0.00023273,30]
[380268920,1755630647326,-400.0,0.00023273,30]
[380268927,1755630647387,-400.0,0.00023273,30]
[380268934,1755630647452,-400.0,0.00023273,30]
[380268941,1755630647514,-400.0,0.00023273,30]
[380268947,1755630647574,-400.0,0.00023273,30]
[380268948,1755630647638,-1524.91,0.00023273,30]
[380268949,1755630647699,-400.0,0.00023273,30]
[380268955,1755630647761,-1268.61,0.00023273,30]
[380268962,1755630647820,-307.51,0.00023273,30]
[380268970,1755630647878,-400.0,0.00023273,30]
[380268977,1755630647939,-3537.65,0.00023273,30]
[380268985,1755630647999,-400.0,0.00023273,30]
[380268993,1755630648065,-632.78,0.00023273,30]
[380269000,1755630648128,-400.0,0.00023273,30]
[380269008,1755630648193,-1091.34,0.00023273,30]
[380269015,1755630648256,-1777.71,0.00023273,30]
[380269023,1755630648320,-1517.91,0.00023273,30]
[380269031,1755630648384,-400.0,0.00023273,30]
[380269038,1755630648445,-449.25,0.00023273,30]
[380269046,1755630648505,-400.0,0.00023273,30]
[380269053,1755630648566,-1999.87,0.00023273,30]
[380269061,1755630648629,-603.15,0.00023273,30]
[380269068,1755630648694,-400.0,0.00023273,30]
[380269075,1755630648754,-737.73,0.00023273,30]
[380269083,1755630648813,-759.41,0.00023273,30]
[380269090,1755630648874,-2887.56,0.00023273,30]
[380269098,1755630648935,-2399.17,0.00023273,30]
[380269105,1755630648998,-327.66,0.00023273,30]
[380269113,1755630649060,-1092.33,0.00023273,30]
[380269121,1755630649124,-400.0,0.00023273,30]
[380269128,1755630649189,-1154.89,0.00023273,30]
[380269136,1755630649251,-400.0,0.00023273,30]
[380269144,1755630649314,-400.0,0.00023273,30]
[380269152,1755630649376,-540.17,0.00023273,30]
[380269159,1755630649439,-400.0,0.00023273,30]
[380269167,1755630649500,-1604.08,0.00023273,30]
[380269174,1755630649561,-272.214113,0.00023273,30]
[380269182,1755630649621,-862.64,0.00023273,30]
[380269189,1755630649685,-961.11,0.00023273,30]
[380269197,1755630649745,-558.64,0.00023273,30]
[380269204,1755630649805,-464.91,0.00023273,30]
[380269212,1755630649865,-400.0,0.00023273,30]
[380269219,1755630649924,-996.27,0.00023273,30]
[380269226,1755630649985,-400.0,0.00023273,30]
[380269234,1755630650049,-1174.54,0.00023273,30]
[380269242,1755630650112,-400.0,0.00023273,30]
[380269250,1755630650173,-400.0,0.00023273,30]
[380269257,1755630650234,-400.0,0.00023273,30]
[380269265,1755630650294,-400.0,0.00023273,30]
[380269272,1755630650356,-529.25,0.00023273,30]
[380269280,1755630650417,-467.39,0.00023273,30]
[380269287,1755630650478,-1287.79,0.00023273,30]
[380269294,1755630650538,-410.72,0.00023273,30]
[380269301,1755630650597,-645.33,0.00023273,30]
[380269308,1755630650656,-400.0,0.00023273,30]
[380269315,1755630650715,-400.0,0.00023273,30]
[380269318,1755630650777,-1713.64,0.00023547,30]
[380269319,1755630650848,-530.76,0.00023547,30]
[380269327,1755630650911,-400.0,0.00023547,30]
[380269334,1755630650971,-1159.8,0.00023547,30]
[380269341,1755630651034,-400.0,0.00023547,30]
[380269349,1755630651097,-594.02,0.00023547,30]
[380269357,1755630651160,-2161.34,0.00023547,30]
[380269364,1755630651226,-785.37,0.00023547,30]
[380269372,1755630651288,-925.07,0.00023547,30]
[380269379,1755630651352,-400.0,0.00023547,30]
[380269387,1755630651412,-1533.15,0.00023547,30]
[380269394,1755630651473,-827.42,0.00023547,30]
[380269401,1755630651532,-1094.8,0.00023547,30]
[380269408,1755630651593,-400.0,0.00023547,30]
[380269415,1755630651654,-1481.14,0.00023547,30]
[380269422,1755630651714,-400.0,0.00023547,30]
[380269430,1755630651776,-400.0,0.00023547,30]
[380269437,1755630651836,-424.97,0.00023547,30]
[380269445,1755630651895,-2049.37,0.00023547,30]
[380269452,1755630651957,-400.0,0.00023547,30]
[380269460,1755630652017,-535.14,0.00023547,30]
[380269467,1755630652077,-2172.05,0.00023547,30]
[380269475,1755630652141,-400.0,0.00023547,30]
[380269483,1755630652202,-400.0,0.00023547,30]
[380269490,1755630652265,-1532.6,0.00023547,30]
[380269498,1755630652327,-831.55,0.00023547,30]
[380269506,1755630652390,-853.09,0.00023547,30]
[380269514,1755630652451,-1512.48,0.00023547,30]
[380269521,1755630652509,-400.0,0.00023547,30]
[380269528,1755630652568,-757.23,0.00023547,30]
[380269535,1755630652626,-400.0,0.00023547,30]
[380269543,1755630652688,-834.74,0.00023547,30]
[380269550,1755630652748,-400.0,0.00023547,30]
[380269557,1755630652808,-528.08,0.00023547,30]
[380269565,1755630652867,-1466.98,0.00023547,30]
[380269572,1755630652926,-1667.74,0.00023547,30]
[380269579,1755630652986,-851.95,0.00023547,30]
[380269625,1755630653421,-400.0,0.00023547,30]
[380269633,1755630653489,-3654.91,0.00023547,30]
[380269641,1755630653548,-400.0,0.00023547,30]
[380269649,1755630653612,-585.37,0.00023547,30]
[380269657,1755630653676,-1678.23,0.00023547,30]
[380269664,1755630653741,-500.95,0.00023547,30]
[380269672,1755630653805,-400.0,0.00023547,30]
[380269679,1755630653865,-1296.84,0.00023547,30]
[380269686,1755630653926,-990.17,0.00023547,30]
[380269694,1755630653988,-1498.02,0.00023547,30]
[380269701,1755630654049,-414.92,0.00023547,30]
[380269709,1755630654111,-490.9,0.00023547,30]
[380269716,1755630654175,-1422.74,0.00023547,30]
[380269724,1755630654240,-837.81,0.00023547,30]
[380269732,1755630654305,-1994.78,0.00023547,30]
[380269740,1755630654368,-684.54,0.00023547,30]
[380269747,1755630654429,-400.0,0.00023547,30]
[380269754,1755630654493,-916.66,0.00023547,30]
[380269762,1755630654557,-400.0,0.00023547,30]
[380269770,1755630654618,-5424.17,0.00023547,30]
[380269777,1755630654685,-1483.77,0.00023547,30]
[380269785,1755630654752,-2023.25,0.00023547,30]
[380269792,1755630654815,-400.0,0.00023547,30]
[380269800,1755630654877,-827.87,0.00023547,30]
[380269808,1755630654941,-400.0,0.00023547,30]
[380269815,1755630655005,-1863.32,0.00023547,30]
[380269823,1755630655069,-1962.6,0.00023547,30]
[380269830,1755630655134,-539.12,0.00023547,30]
[380269837,1755630655197,-1489.75,0.00023547,30]
[380269845,1755630655260,-1279.96,0.00023547,30]
[380269852,1755630655323,-804.37,0.00023547,30]
[380269860,1755630655384,-879.44,0.00023547,30]
[380269867,1755630655445,-400.0,0.00023547,30]
[380269874,1755630655505,-400.0,0.00023547,30]
[380269882,1755630655565,-736.46,0.00023547,30]
[380269889,1755630655626,-400.0,0.00023547,30]
[380269896,1755630655690,-3004.1,0.00023547,30]
[380269903,1755630655748,-540.41,0.00023547,30]
[380269910,1755630655805,-903.83,0.00023547,30]
[380269917,1755630655863,-400.0,0.00023547,30]
[380269924,1755630655917,-400.0,0.00023547,30]
[380269925,1755630655974,-452.13,0.00023547,30]
[380269927,1755630656037,-768.98,0.00023547,30]
[380269935,1755630656096,-1813.68,0.00023547,30]
[380269942,1755630656156,-400.0,0.00023547,30]
[380269949,1755630656217,-400.0,0.00023547,30]
[380269957,1755630656282,-400.0,0.00023547,30]
[380269964,1755630656350,-441.58129436,0.00023547,30]
[380269971,1755630656417,-2223.82,0.00023547,30]
[380269979,1755630656477,-400.0,0.00023547,30]
[380269986,1755630656534,-2140.5,0.00023547,30]
[380269993,1755630656590,-400.0,0.00023547,30]
[380270000,1755630656647,-762.55,0.00023547,30]
[380270006,1755630656704,-2978.0,0.00023547,30]
[380270012,1755630656762,-1352.34,0.00023547,30]
[380270013,1755630656816,-400.0,0.00023547,30]
[380270015,1755630656869,-2258.26,0.00023547,30]
[380270021,1755630656924,-447.68,0.00023547,30]
[380270029,1755630656983,-450.49889907,0.00023547,30]
[380270036,1755630657041,-400.0,0.00023547,30]
[380270043,1755630657100,-400.0,0.00023547,30]
[380270050,1755630657159,-666.94,0.00023547,30]
[380270058,1755630657220,-400.0,0.00023547,30]
[380270061,1755630657282,-400.0,0.00023547,30]
[380270066,1755630657346,-400.0,0.00023547,30]
[380270073,1755630657408,-699.19,0.00023547,30]
[380270075,1755630657469,-786.12,0.00023547,30]
[380270076,1755630657528,-1078.83,0.00023547,30]
[380270080,1755630657586,-1117.26,0.00023547,30]
[380270081,1755630657645,-400.0,0.00023547,30]
[380270088,1755630657703,-400.0,0.00023547,30]
[380270093,1755630657761,-685.74,0.00023547,30]
[380270096,1755630657817,-1514.98,0.00023547,30]
[380270097,1755630657874,-686.36,0.00023547,30]
[380270098,1755630657931,-400.0,0.00023547,30]
[380270099,1755630657992,-783.3,0.00023547,30]
[380270100,1755630658051,-400.0,0.00023547,30]
[380270101,1755630658211,-400.0,0.00023547,30]
[380270102,1755630658275,-3991.88,0.00023547,30]
[380270103,1755630658346,-400.0,0.00023547,30]
[380270104,1755630658412,-927.22,0.00023547,30]
[380270105,1755630658470,-3326.57,0.00023547,30]
[380270106,1755630658530,-858.73,0.00023547,30]
[380270107,1755630658588,-463.57,0.00023547,30]
[380270108,1755630658647,-638.06,0.00023547,30]
[380270109,1755630658703,-1217.67,0.00023547,30]
[380270110,1755630658758,-1055.26,0.00023547,30]
[380270111,1755630658812,-617.22,0.00023547,30]
[380270112,1755630658865,-654.88,0.00023547,30]
[380270113,1755630658917,-927.42,0.00023547,30]
[380270114,1755630658969,-400.0,0.00023547,30]
[380270115,1755630659023,-877.36,0.00023547,30]
[380270116,1755630659076,-1451.41,0.00023547,30]
[380270117,1755630659133,-400.0,0.00023547,30]
[380270118,1755630659191,-774.15,0.00023547,30]
[380270119,1755630659253,-400.0,0.00023547,30]
[380270120,1755630659318,-400.0,0.00023547,30]
[380270121,1755630659378,-755.17,0.00023547,30]
[380270122,1755630659437,-1269.4,0.00023547,30]
[380270123,1755630659493,-850.21,0.00023547,30]
[380270124,1755630659549,-400.0,0.00023547,30]
[380270125,1755630659604,-2050.78,0.00023547,30]
[380270126,1755630659657,-400.0,0.00023547,30]
[380270127,1755630659710,-400.0,0.00023547,30]
[380270128,1755630659765,-1574.07,0.00023547,30]
[380270129,1755630659824,-3252.62,0.00023547,30]
[380270130,1755630659882,-400.0,0.00023547,30]
[380270131,1755630659939,-400.0,0.00023547,30]
[380270132,1755630660002,-893.8,0.00023547,30]
[380270133,1755630660066,-1796.62,0.00023547,30]
[380270134,1755630660133,-2151.13,0.00023547,30]
[380270135,1755630660205,-315.58,0.00023547,30]
[380270136,1755630660272,-400.0,0.00023547,30]
[380270137,1755630660336,-400.0,0.00023547,30]
[380270138,1755630660400,-400.0,0.00023547,30]
[380270139,1755630660464,-400.0,0.00023547,30]
[380270140,1755630660526,-400.0,0.00023547,30]
[380270141,1755630660586,-1524.91,0.00023547,30]
[380270142,1755630660647,-400.0,0.00023547,30]
[380270143,1755630660704,-1268.61,0.00023547,30]
[380270144,1755630660762,-400.0,0.00023547,30]
[380270145,1755630660817,-3537.65,0.00023547,30]
[380270146,1755630660870,-400.0,0.00023547,30]
[380270147,1755630660923,-632.78,0.00023547,30]
[380270148,1755630660986,-400.0,0.00023547,30]
[380270149,1755630661056,-1091.34,0.00023547,30]
[380270150,1755630661128,-1777.71,0.00023547,30]
[380270151,1755630661190,-1517.91,0.00023547,30]
[380270152,1755630661255,-400.0,0.00023547,30]
[380270153,1755630661315,-449.25,0.00023547,30]
[380270154,1755630661377,-400.0,0.00023547,30]
[380270155,1755630661436,-1999.87,0.00023547,30]
[380270156,1755630661494,-603.15,0.00023547,30]
[380270157,1755630661550,-400.0,0.00023547,30]
[380270158,1755630661605,-737.73,0.00023547,30]
[380270159,1755630661659,-759.41,0.00023547,30]
[380270160,1755630661715,-2887.56,0.00023547,30]
[380270161,1755630661768,-2399.17,0.00023547,30]
[380270162,1755630661824,-1092.33,0.00023547,30]
[380270163,1755630661879,-400.0,0.00023547,30]
[380270164,1755630661931,-1154.89,0.00023547,30]
[380270165,1755630661987,-400.0,0.00023547,30]
[380270166,1755630662044,-400.0,0.00023547,30]
[380270167,1755630662101,-540.17,0.00023547,30]
[380270168,1755630662156,-1604.08,0.00023547,30]
[380270169,1755630662212,-400.0,0.00023547,30]
[380270170,1755630662270,-862.64,0.00023547,30]
[380270171,1755630662328,-961.11,0.00023547,30]
[380270172,1755630662385,-558.64,0.00023547,30]
[380270173,1755630662441,-464.91,0.00023547,30]
[380270174,1755630662496,-400.0,0.00023547,30]
[380270175,1755630662550,-996.27,0.00023547,30]
[380270176,1755630662604,-400.0,0.00023547,30]
[380270177,1755630662658,-1174.54,0.00023547,30]
[380270178,1755630662711,-400.0,0.00023547,30]
[380270179,1755630662768,-400.0,0.00023547,30]
[380270180,1755630662823,-400.0,0.00023547,30]
[380270181,1755630662879,-400.0,0.00023547,30]
[380270182,1755630662934,-529.25,0.00023547,30]
[380270183,1755630662989,-467.39,0.00023547,30]
[380270184,1755630663049,-1287.79,0.00023547,30]
[380270185,1755630663111,-410.72,0.00023547,30]
[380270186,1755630663171,-645.33,0.00023547,30]
[380270187,1755630663233,-400.0,0.00023547,30]
[380270188,1755630663316,-851.26,0.00023821,30]
[380270189,1755630663380,-400.0,0.00023821,30]
[380270190,1755630663441,-437.88,0.00023821,30]
[380270191,1755630663508,-1607.24,0.00023821,30]
[380270192,1755630663569,-400.0,0.00023821,30]
[380270193,1755630663638,-400.0,0.00023821,30]
[380270194,1755630663707,-482.8,0.00023821,30]
[380270195,1755630663771,-400.0,0.00023821,30]
[380270196,1755630663832,-400.0,0.00023821,30]
[380270197,1755630663890,-1765.89,0.00023821,30]
[380270198,1755630663951,-400.0,0.00023821,30]
[380270199,1755630664010,-1008.25,0.00023821,30]
[380270200,1755630664070,-556.2,0.00023821,30]
[380270201,1755630664131,-400.0,0.00023821,30]
[380270202,1755630664194,-411.04,0.00023821,30]
[380270203,1755630664259,-438.9,0.00023821,30]
[380270204,1755630664322,-400.0,0.00023821,30]
[380270205,1755630664387,-400.0,0.00023821,30]
[380270206,1755630664450,-2238.16,0.00023821,30]
[380270207,1755630664510,-400.0,0.00023821,30]
[380270208,1755630664569,-400.0,0.00023821,30]
[380270209,1755630664627,-400.0,0.00023821,30]
[380270210,1755630664693,-584.89,0.00023821,30]
[380270211,1755630664764,-698.53,0.00023821,30]
[380270212,1755630664828,-605.66,0.00023821,30]
[380270213,1755630664895,-400.0,0.00023821,30]
[380270214,1755630664955,-400.0,0.00023821,30]
[380270215,1755630665014,-400.0,0.00023821,30]
[380270216,1755630665075,-461.41,0.00023821,30]
[380270217,1755630665136,-459.17256378,0.00023821,30]
[380270218,1755630665453,-1632.1,0.00023821,30]
[380270219,1755630665518,-579.14,0.00023821,30]
[380270220,1755630665578,-400.0,0.00023821,30]
[380270221,1755630665639,-1023.1,0.00023821,30]
[380270222,1755630665700,-2074.73,0.00023821,30]
[380270223,1755630665759,-596.89,0.00023821,30]
[380270224,1755630665819,-400.0,0.00023821,30]
[380270225,1755630665879,-400.0,0.00023821,30]
[380270226,1755630665935,-400.0,0.00023821,30]
[380270227,1755630665994,-400.0,0.00023821,30]
[380270228,1755630666054,-400.0,0.00023821,30]
[380270229,1755630666113,-773.53,0.00023821,30]
[380270230,1755630666172,-1825.28,0.00023821,30]
[380270231,1755630666231,-1523.06,0.00023821,30]
[380270232,1755630666292,-191.16868317,0.00023821,30]
[380270233,1755630666353,-400.0,0.00023821,30]
[380270234,1755630666414,-2716.46,0.00023821,30]
[380270235,1755630666472,-400.0,0.00023821,30]
[380270236,1755630666530,-400.0,0.00023821,30]
[380270237,1755630666588,-400.0,0.00023821,30]
[380270238,1755630666646,-408.97,0.00023821,30]
[380270239,1755630666707,-1571.86,0.00023821,30]
[380270240,1755630666764,-403.44,0.00023821,30]
[380270241,1755630666817,-400.0,0.00023821,30]
[380270242,1755630666871,-400.0,0.00023821,30]
[380270243,1755630666925,-400.0,0.00023821,30]
[380270244,1755630666979,-2094.77,0.00023821,30]
[380270245,1755630667033,-400.0,0.00023821,30]
[380270246,1755630667088,-445.03,0.00023821,30]
[380270247,1755630667142,-410.03,0.00023821,30]
[380270248,1755630667198,-506.71966473,0.00023821,30]
[380270249,1755630667257,-400.0,0.00023821,30]
[380270250,1755630667316,-1358.16,0.00023821,30]
[380270251,1755630667376,-2348.69,0.00023821,30]
[380270252,1755630667435,-1179.36,0.00023821,30]
[380270253,1755630667495,-506.52,0.00023821,30]
[380270254,1755630667558,-400.0,0.00023821,30]
[380270255,1755630667623,-1821.21,0.00023821,30]
[380270256,1755630667687,-657.8,0.00023821,30]
[380270257,1755630667748,-590.84,0.00023821,30]
[380270258,1755630667809,-400.0,0.00023821,30]
[380270259,1755630667870,-912.76,0.00023821,30]
[380270260,1755630667934,-400.0,0.00023821,30]
[380270261,1755630667996,-1223.73,0.00023821,30]
[380270262,1755630668059,-400.0,0.00023821,30]
[380270263,1755630668123,-400.0,0.00023821,30]
[380270264,1755630668186,-1766.94,0.00023821,30]
[380270265,1755630668252,-2098.13,0.00023821,30]
[380270266,1755630668317,-964.55,0.00023821,30]
[380270267,1755630668383,-400.0,0.00023821,30]
[380270268,1755630668449,-907.48,0.00023821,30]
[380270269,1755630668512,-400.0,0.00023821,30]
[380270270,1755630668576,-1038.22,0.00023821,30]
[380270271,1755630668639,-400.0,0.00023821,30]
[380270272,1755630668704,-500.04,0.00023821,30]
[380270273,1755630668765,-400.0,0.00023821,30]
[380270274,1755630668824,-3192.48,0.00023821,30]
[380270275,1755630668884,-2133.63,0.00023821,30]
[380270276,1755630668944,-1673.85,0.00023821,30]
[380270277,1755630669005,-3254.26,0.00023821,30]
[380270278,1755630669068,-406.02,0.00023821,30]
[380270279,1755630669132,-400.0,0.00023821,30]
[380270280,1755630669199,-960.18,0.00023821,30]
[380270281,1755630669265,-594.4,0.00023821,30]
[380270282,1755630669327,-1003.4,0.00023821,30]
[380270283,1755630669390,-416.9,0.00023821,30]
[380270284,1755630669452,-479.67,0.00023821,30]
[380270285,1755630669516,-2104.94,0.00023821,30]
[380270286,1755630669584,-1658.41,0.00023821,30]
[380270287,1755630669647,-400.0,0.00023821,30]
[380270288,1755630669709,-672.86,0.00023821,30]
[380270289,1755630669774,-400.0,0.00023821,30]
[380270290,1755630669836,-400.0,0.00023821,30]
[380270291,1755630669896,-1715.1,0.00023821,30]
[380270292,1755630669959,-400.0,0.00023821,30]
[380270293,1755630670021,-400.0,0.00023821,30]
[380270294,1755630670084,-775.68,0.00023821,30]
[380270295,1755630670146,-933.05,0.00023821,30]
[380270296,1755630670210,-503.65,0.00023821,30]
[380270297,1755630670280,-930.59,0.00023821,30]
[380270298,1755630670343,-400.0,0.00023821,30]
[380270299,1755630670405,-400.0,0.00023821,30]
[380270300,1755630670468,-1249.51,0.00023821,30]
[380270301,1755630670531,-2775.35,0.00023821,30]
[380270302,1755630670593,-400.0,0.00023821,30]
[380270303,1755630670655,-976.92,0.00023821,30]
[380270304,1755630670718,-400.0,0.00023821,30]
[380270305,1755630670778,-557.23,0.00023821,30]
[380270306,1755630670839,-503.04,0.00023821,30]
[380270307,1755630670900,-668.31,0.00023821,30]
[380270308,1755630670962,-745.22,0.00023821,30]
[380270309,1755630671025,-804.51,0.00023821,30]